bitfinex/quotes_ETHUSD_20251108
["timestamp","ask_amount","ask_price","bid_price","bid_amount"]
[1762590524524,3.35367468,3459.4,3459.3,0.001]
[1762590524725,3.97809355,3459.4,3459.3,0.001]
[1762590525796,0.463,3459.4,3459.3,0.001]
[1762590526415,3.35367468,3459.4,3459.3,0.001]
[1762590526722,0.463,3459.4,3459.3,0.001]
[1762590527024,3.35367468,3459.4,3459.3,0.001]
[1762590527220,0.463,3459.4,3459.3,0.001]
[1762590527616,0.1202,3459.9,3459.3,0.001]
[1762590527937,0.582,3459.9,3459.3,0.001]
[1762590528140,0.4664,3459.4,3459.3,0.001]
[1762590528291,0.9282,3459.4,3459.3,0.001]
[1762590530695,3.84789972,3459.4,3459.3,0.001]
[1762590531450,3.81887468,3459.4,3459.3,0.001]
[1762590539438,5.07858668,3459.4,3459.3,0.001]
[1762590539639,5.88989685,3459.4,3459.3,0.001]
[1762590540174,2.8909479,3459.1,3458.1,0.005]
[1762590540340,0.4664,3458.2,3458.1,0.005]
[1762590540954,0.9282,3458.2,3458.1,0.005]
[1762590541134,0.144,3458.6,3458.1,0.558]
[1762590541341,0.1861,3458.8,3458.3,3.34828703]
[1762590541547,0.1861,3458.8,3458.3,0.4567]
[1762590541735,0.6447,3458.8,3458.3,0.4567]
[1762590542163,0.4586,3458.7,3458.3,0.4567]
[1762590542571,0.4586,3458.7,3458.1,3.13704385]
[1762590542758,0.4586,3458.7,3458.1,0.149]
[1762590542964,0.4855,3458.2,3458.1,0.149]
[1762590543797,3.83577775,3458.2,3458.1,0.005]
[1762590543999,4.50849569,3458.2,3458.1,0.005]
[1762590544209,4.65249569,3458.2,3458.1,0.005]
[1762590544870,4.68152073,3458.2,3458.1,0.005]
[1762590545071,4.65249569,3458.2,3458.1,0.005]
[1762590545285,5.94123273,3458.2,3458.1,0.005]
[1762590545506,5.91220769,3458.2,3458.1,0.005]
[1762590545822,5.94123273,3458.2,3457.8,0.001]
[1762590546100,4.39024062,3457.9,3457.8,0.001]
[1762590546510,4.84884062,3457.9,3457.8,0.001]
[1762590556507,4.39024062,3457.9,3457.8,0.001]
[1762590556708,4.84884062,3457.9,3457.8,0.001]
[1762590561415,4.39024062,3457.9,3457.8,0.001]
[1762590561616,5.27404181,3457.9,3457.8,0.001]
[1762590561839,5.73264181,3457.9,3457.8,0.001]
[1762590563322,5.76166685,3457.9,3457.8,0.001]
[1762590564049,5.73264181,3457.9,3457.8,0.001]
[1762590565948,12.92401224,3457.9,3457.8,0.001]
[1762590566149,12.61814581,3457.9,3457.8,0.001]
[1762590568450,13.96719969,3457.9,3457.8,0.001]
[1762590569123,13.96719969,3457.9,3457.1,1e-08]
[1762590569463,10.71746716,3457.2,3457.1,1e-08]
[1762590569664,11.49636832,3457.2,3457.1,1e-08]
[1762590569836,11.17606716,3457.2,3457.1,1e-08]
[1762590570348,10.38624116,3457.2,3457.1,1e-08]
[1762590571863,9.60762504,3457.2,3457.1,1e-08]
[1762590572062,11.41443017,3457.2,3457.1,1e-08]
[1762590573127,11.8682631,3457.2,3457.1,1e-08]
[1762590574349,7.33866823,3457.2,3457.1,1e-08]
[1762590575553,6.88006823,3457.2,3457.1,1e-08]
[1762590575741,5.70065223,3457.2,3457.1,1e-08]
[1762590576058,6.96036423,3457.2,3457.1,1e-08]
[1762590578457,6.0207313,3457.2,3457.1,1e-08]
[1762590579335,4.21392617,3457.2,3457.1,1e-08]
[1762590582479,4.15222617,3457.2,3457.1,0.49310001]
[1762590583376,4.15222617,3457.2,3457.1,1e-08]
[1762590584079,4.61462617,3457.2,3457.1,1e-08]
[1762590585571,4.61462617,3457.2,3457.1,0.00100001]
[1762590585774,5.4139106,3457.2,3457.1,0.00100001]
[1762590585977,5.4159106,3457.2,3457.1,0.00100001]
[1762590588192,5.9080106,3457.2,3457.1,0.00100001]
[1762590590181,7.68681933,3457.2,3457.1,0.00100001]
[1762590590356,4.15256087,3456.8,3456.7,0.001]
[1762590590683,11.70113357,3456.8,3456.7,0.001]
[1762590590859,12.19323357,3456.8,3456.7,0.001]
[1762590591976,6.09033021,3456.8,3456.7,0.001]
[1762590592184,6.53352353,3456.8,3456.7,0.001]
[1762590592350,5.75340592,3456.8,3456.7,0.001]
[1762590592902,5.20990592,3456.8,3456.7,0.001]
[1762590593386,5.20990592,3456.8,3456.7,0.4941]
[1762590594355,2.89277498,3456.9,3456.7,0.4941]
[1762590594676,2.89284887,3456.8,3456.7,0.4879]
[1762590595185,2.89284887,3456.8,3456.7,0.981]
[1762590595591,2.89284887,3456.8,3456.7,0.4941]
[1762590596253,2.89284887,3456.8,3456.7,0.001]
[1762590596471,8.00077262,3456.8,3456.7,0.001]
[1762590597291,8.00077262,3456.8,3456.7,0.4941]
[1762590598003,8.00077262,3456.8,3456.7,0.981]
[1762590598201,7.42221223,3456.8,3456.7,0.981]
[1762590598571,7.42221223,3456.8,3456.7,0.4941]
[1762590600294,7.56621223,3456.8,3456.7,0.4941]
[1762590600513,9.28832423,3456.8,3456.7,0.001]
[1762590600824,6.46916156,3456.8,3456.7,0.001]
[1762590601119,10.50642492,3456.8,3456.7,0.001]
[1762590601609,11.00282492,3456.8,3456.7,0.001]
[1762590603024,10.50642492,3456.8,3456.7,0.001]
[1762590603205,11.28742972,3456.8,3456.7,0.001]
[1762590605221,5.03595436,3456.8,3456.7,0.001]
[1762590605524,9.90002492,3456.8,3456.7,0.001]
[1762590605725,10.37332492,3456.8,3456.7,0.001]
[1762590606454,10.86972492,3456.8,3456.7,0.001]
[1762590606625,11.65072972,3456.8,3456.7,0.001]
[1762590607527,11.98765401,3456.8,3456.7,0.001]
[1762590607727,11.49125401,3456.8,3456.7,0.001]
[1762590607891,11.98765401,3456.8,3456.7,0.001]
[1762590608495,11.15432972,3456.8,3456.7,0.001]
[1762590609197,10.86972492,3456.8,3456.7,0.001]
[1762590609422,10.37332492,3456.8,3456.7,0.001]
[1762590612325,10.86972492,3456.8,3456.7,0.001]
[1762590613263,10.37332492,3456.8,3456.7,0.001]
[1762590613546,9.90002492,3456.8,3456.7,0.001]
[1762590614814,9.90002492,3456.8,3456.7,0.4687]
[1762590615546,0.002,3457.1,3456.7,0.9385]
[1762590615739,0.144,3456.9,3456.7,0.4708]
[1762590615943,0.144,3456.9,3456.8,0.4698]
[1762590616252,0.144,3456.9,3456.8,0.9375]
[1762590616554,0.144,3456.9,3456.8,3.83034887]
[1762590617113,0.144,3456.9,3456.8,0.9375]
[1762590617516,0.144,3456.9,3456.8,3.83034887]
[1762590617961,0.002,3457.1,3457.0,2.89268151]
[1762590618124,0.146,3457.1,3457.0,0.9375]
[1762590618633,0.146,3457.1,3457.0,3.83018151]
[1762590619239,0.146,3457.1,3457.0,4.50258296]
[1762590619817,0.002,3457.1,3457.0,4.50258296]
[1762590620967,0.002,3457.1,3457.0,4.64658296]
[1762590621558,0.002,3457.6,3457.5,2.89226319]
[1762590621862,0.005,3458.9,3458.8,2.89117613]
[1762590622047,0.005,3458.9,3458.8,1.1335]
[1762590622244,0.005,3458.9,3458.8,0.6637]
[1762590622636,0.005,3458.9,3458.8,4.02467613]
[1762590623041,0.005,3458.9,3458.8,1.1335]
[1762590624345,0.005,3458.9,3458.8,4.02467613]
[1762590624925,0.005,3458.9,3458.8,4.71627108]
[1762590626856,0.005,3458.9,3458.8,5.97598308]
[1762590627384,0.005,3458.9,3458.8,4.71627108]
[1762590627745,0.005,3459.9,3458.8,4.71627108]
[1762590627947,0.005,3459.9,3459.8,3.55404048]
[1762590628375,0.005,3459.9,3459.8,4.02384048]
[1762590633372,0.005,3459.9,3459.8,4.77931224]
[1762590633673,1e-08,3459.9,3459.8,5.06731224]
[1762590633894,1e-08,3459.9,3459.8,6.73252824]
[1762590635281,1e-08,3459.9,3459.8,6.58852824]
[1762590635875,1e-08,3459.9,3459.8,6.18302424]
[1762590636076,1e-08,3459.9,3459.8,4.16784048]
[1762590636809,1e-08,3459.9,3459.8,4.14844048]
[1762590638213,1e-08,3459.9,3459.8,3.50204048]
[1762590638413,1e-08,3459.9,3459.8,2.89034048]
[1762590638578,0.43220001,3459.9,3459.8,2.89034048]
[1762590638911,1e-08,3459.9,3459.8,3.36484048]
[1762590639327,1e-08,3459.9,3459.8,4.52761788]
[1762590641524,1e-08,3459.9,3459.8,4.52861788]
[1762590641732,0.00200001,3459.9,3459.8,4.52861788]
[1762590643185,0.00200001,3459.9,3459.8,2.89134048]
[1762590643507,0.45890001,3459.9,3459.8,2.89134048]
[1762590643809,0.93040001,3459.9,3459.8,2.89134048]
[1762590643976,0.45890001,3459.9,3459.8,2.89134048]
[1762590644834,0.00200001,3459.9,3459.8,3.38154048]
[1762590645734,0.00200001,3459.9,3459.8,4.74417807]
[1762590645900,0.00200001,3459.9,3459.8,5.21577807]
[1762590649956,0.00200001,3459.9,3459.8,4.72097807]
[1762590650235,0.00200001,3459.9,3459.8,2.89134048]
[1762590650236,0.49030001,3459.9,3459.8,2.89134048]
[1762590650533,5.21056895,3459.9,3459.8,0.001]
[1762590651294,5.00056895,3459.9,3459.8,0.001]
[1762590652034,2.11031201,3459.9,3459.8,0.001]
[1762590652209,2.32134321,3459.9,3459.8,0.001]
[1762590652532,5.21160015,3459.9,3459.8,0.001]
[1762590658719,2.32134321,3459.9,3459.8,0.001]
[1762590658902,5.21160015,3459.9,3459.8,0.001]
[1762590660848,2.32134321,3459.9,3459.8,0.001]
[1762590661048,5.21160015,3459.9,3459.8,0.001]
[1762590661347,2.32134321,3459.9,3459.8,0.001]
[1762590661945,2.32334321,3459.9,3459.8,0.001]
[1762590662331,5.24262519,3459.9,3459.8,0.001]
[1762590662904,4.55580712,3459.5,3459.4,0.001]
[1762590663033,4.15055381,3459.2,3459.1,0.001]
[1762590663203,4.23305381,3459.2,3459.1,0.001]
[1762590663411,4.69515381,3459.2,3459.1,0.001]
[1762590663910,1.804312,3459.2,3459.1,0.001]
[1762590664109,1.342212,3459.2,3459.1,0.001]
[1762590664843,5.11845157,3459.2,3459.1,0.001]
[1762590666346,1.76550976,3459.2,3459.1,0.001]
[1762590666550,1.342212,3459.2,3459.1,0.001]
[1762590666973,4.69515381,3459.2,3459.1,0.001]
[1762590667778,5.14861168,3459.2,3459.1,0.001]
[1762590668276,2.25776987,3459.2,3459.1,0.001]
[1762590668577,1.79566987,3459.2,3459.1,0.001]
[1762590668744,1.81085765,3459.2,3459.1,0.001]
[1762590669676,5.16379946,3459.2,3459.1,0.001]
[1762590670682,5.5983285,3459.2,3459.1,0.001]
[1762590671176,2.27295765,3459.2,3459.1,0.001]
[1762590671491,5.16379946,3459.2,3459.1,0.001]
[1762590672178,2.27295765,3459.2,3459.1,0.001]
[1762590672340,5.16379946,3459.2,3459.1,0.001]
[1762590673282,4.70169946,3459.2,3459.1,0.001]
[1762590673471,5.16379946,3459.2,3459.1,0.001]
[1762590673786,1.81085765,3459.2,3459.1,0.001]
[1762590673980,0.4621,3459.7,3459.1,0.4542]
[1762590674186,1.259712,3459.5,3459.1,0.4542]
[1762590674389,0.2358,3459.2,3459.1,0.001]
[1762590674596,1.495512,3459.2,3459.1,0.001]
[1762590674753,5.61993559,3459.2,3459.1,0.001]
[1762590675993,5.64896063,3459.2,3459.1,0.001]
[1762590676159,5.61993559,3459.2,3459.1,0.001]
[1762590678862,6.80172941,3459.2,3459.1,0.001]
[1762590679087,13.28172941,3459.2,3459.1,0.001]
[1762590679254,12.50543959,3459.2,3459.1,0.001]
[1762590680487,18.60207469,3459.2,3459.1,0.001]
[1762590681078,18.60207469,3459.2,3458.7,0.001]
[1762590681279,4.55689375,3458.2,3458.1,0.005]
[1762590681453,5.24219375,3458.2,3458.1,0.005]
[1762590682418,5.15331064,3458.2,3458.1,0.005]
[1762590683116,5.61541064,3458.2,3458.1,0.005]
[1762590683911,4.83668975,3458.2,3458.1,0.005]
[1762590684111,5.79136146,3458.2,3458.1,0.005]
[1762590684620,5.32926146,3458.2,3458.1,0.005]
[1762590685725,5.79136146,3458.2,3458.1,0.005]
[1762590686889,6.24505608,3458.2,3458.1,0.005]
[1762590689227,5.10606146,3458.2,3458.1,0.005]
[1762590689426,5.53976146,3458.2,3458.1,0.005]
[1762590690406,10.06581671,3458.2,3458.1,0.005]
[1762590691322,10.52761671,3458.2,3458.1,0.005]
[1762590692130,10.06581671,3458.2,3458.1,0.005]
[1762590692728,2.21438371,3458.2,3458.1,1.1171]
[1762590693030,10.05931671,3458.2,3458.1,0.005]
[1762590693204,10.52751671,3458.2,3458.1,0.005]
[1762590693399,10.93302071,3458.2,3458.1,0.005]
[1762590695133,13.98202071,3458.2,3458.1,0.005]
[1762590695432,10.93302071,3458.2,3458.1,0.005]
[1762590697367,5.53326146,3458.2,3458.1,0.005]
[1762590697658,5.10606146,3458.2,3458.1,0.005]
[1762590697957,5.53366146,3458.2,3458.1,0.006]
[1762590698468,5.10606146,3458.2,3458.1,0.4565]
[1762590698679,6.48,3458.3,3458.1,1.1181]
[1762590698815,9.37164692,3458.3,3458.2,0.4505]
[1762590699164,10.63135892,3458.3,3458.2,0.9175]
[1762590699370,7.739712,3458.3,3458.2,0.9175]
[1762590701237,4.52605525,3458.6,3458.2,3.80917775]
[1762590701547,0.002,3458.7,3458.5,0.4505]
[1762590701741,2.89325972,3458.7,3458.6,0.4505]
[1762590701933,8.34363604,3458.7,3458.6,0.4505]
[1762590702109,5.78776725,3458.7,3458.6,0.9175]
[1762590703543,8.67902697,3458.7,3458.6,0.9175]
[1762590704545,8.67902697,3458.7,3458.6,0.4505]
[1762590704933,5.78776725,3458.7,3458.6,0.4505]
[1762590705625,8.67902697,3458.7,3458.6,0.4505]
[1762590707930,1.259712,3458.3,3458.1,0.2006]
[1762590708345,1.259712,3458.3,3458.2,0.9626]
[1762590708541,1.259712,3458.6,3458.2,0.9626]
[1762590708741,4.15110602,3458.6,3458.5,0.496]
[1762590710163,1.259712,3458.3,3458.1,0.2006]
[1762590710453,0.144,3458.3,3458.2,0.4666]
[1762590710658,0.144,3458.3,3458.2,0.9626]
[1762590713367,0.144,3458.3,3458.2,3.85427775]
[1762590717383,0.144,3458.3,3458.2,0.9626]
[1762590717684,0.144,3458.3,3458.2,3.85427775]
[1762590720286,0.144,3458.3,3458.2,0.9626]
[1762590721185,0.144,3458.3,3458.2,3.85427775]
[1762590722475,0.144,3458.3,3458.2,0.9626]
[1762590723851,0.144,3458.3,3458.1,0.006]
[1762590723852,0.6365,3458.3,3458.1,0.006]
[1762590724052,0.461,3458.2,3458.1,0.006]
[1762590724287,5.52621237,3458.2,3458.1,0.006]
[1762590724973,2.17753462,3458.2,3458.1,0.006]
[1762590725168,1.259712,3458.2,3458.1,1.1563]
[1762590727402,1.259712,3458.2,3458.1,0.5009]
[1762590727610,1.693812,3458.2,3458.1,0.006]
[1762590728494,1.259712,3458.2,3458.1,0.5009]
[1762590730310,2.20532087,3458.2,3458.1,0.5009]
[1762590730513,1.259712,3458.2,3458.1,0.5009]
[1762590730735,1.259712,3458.2,3458.1,0.6928]
[1762590731242,1.259712,3458.2,3458.1,0.5009]
[1762590731538,4.15138975,3458.2,3458.1,0.5009]
[1762590731744,1.259712,3458.2,3458.1,0.5009]
[1762590731902,5.36764519,3458.2,3458.1,0.006]
[1762590732101,5.85347023,3458.2,3458.1,0.006]
[1762590732501,5.39667023,3458.2,3458.1,0.006]
[1762590732703,5.85347023,3458.2,3458.1,0.006]
[1762590733036,2.93276744,3458.2,3458.1,0.006]
[1762590733197,2.93276744,3458.2,3458.1,0.5009]
[1762590733198,2.04186744,3458.2,3458.1,0.5009]
[1762590733403,1.259712,3458.2,3458.1,0.5009]
[1762590735744,1.259712,3458.2,3458.1,0.9644]
[1762590737604,1.259712,3458.2,3458.1,0.5009]
[1762590738322,1.259712,3458.2,3458.1,0.9644]
[1762590739547,1.259712,3458.2,3458.1,3.85616137]
[1762590739964,1.259712,3458.2,3458.1,4.04806137]
[1762590740255,1.259712,3458.2,3458.1,1.1563]
[1762590741037,1.259712,3458.2,3458.1,4.04806137]
[1762590741245,1.259712,3458.6,3458.1,4.04806137]
[1762590741430,1.259712,3458.6,3458.2,0.4635]
[1762590742549,0.144,3458.2,3458.1,0.006]
[1762590743047,0.144,3458.2,3458.1,0.9644]
[1762590743851,0.144,3458.2,3458.1,0.5009]
[1762590744146,0.52445809,3458.2,3458.1,0.006]
[1762590744540,0.09035809,3458.2,3458.1,0.9644]
[1762590744912,0.09035809,3458.2,3458.1,0.5009]
[1762590746455,0.52445809,3458.2,3458.1,0.006]
[1762590746820,5.50327625,3458.2,3458.1,0.006]
[1762590747015,5.47425121,3458.2,3458.1,0.006]
[1762590747255,5.50327625,3458.2,3458.1,0.006]
[1762590747419,6.25537578,3458.2,3458.1,0.006]
[1762590747737,5.47425121,3458.2,3458.1,0.006]
[1762590749776,2.58257346,3458.2,3458.1,0.006]
[1762590749917,2.04062238,3458.2,3458.1,0.006]
[1762590750119,1.71335488,3458.2,3458.1,0.5009]
[1762590750313,1.259712,3458.2,3458.1,0.5009]
[1762590750553,1.259712,3458.2,3458.1,0.006]
[1762590752138,1.693812,3458.2,3458.1,0.006]
[1762590752338,6.55836768,3458.2,3458.1,0.006]
[1762590752574,3.66668993,3458.2,3458.1,0.006]
[1762590752745,3.21328993,3458.2,3458.1,0.006]
[1762590753581,6.10496768,3458.2,3458.1,0.006]
[1762590753871,6.55836768,3458.2,3458.1,0.006]
[1762590754558,7.33927806,3458.2,3458.1,0.006]
[1762590754868,6.55836768,3458.2,3458.1,0.006]
[1762590756349,13.44387168,3458.2,3458.1,0.006]
[1762590757354,13.03836768,3458.2,3458.1,0.006]
[1762590760538,12.15086768,3458.2,3458.1,0.006]
[1762590760746,9.69688993,3458.2,3458.1,0.006]
[1762590760946,10.63138975,3458.2,3458.1,0.4706]
[1762590761376,10.63138975,3458.2,3458.1,0.006]
[1762590763171,11.06908975,3458.2,3458.1,0.006]
[1762590763372,11.52228975,3458.2,3458.1,0.006]
[1762590763578,11.06908975,3458.2,3458.1,0.006]
[1762590763774,13.0058825,3458.2,3458.1,0.006]
[1762590764366,0.7804614,3458.5,3458.1,1.1859]
[1762590764567,0.002,3458.7,3458.4,0.4924]
[1762590764780,0.002,3458.7,3458.6,0.4924]
[1762590765493,0.002,3458.7,3458.1,0.1939]
[1762590765494,1.259712,3458.5,3458.1,0.006]
[1762590765661,2.89165155,3458.3,3458.1,0.006]
[1762590766382,4.62504071,3458.4,3458.1,0.006]
[1762590766758,4.15124071,3458.4,3458.1,0.006]
[1762590768607,2.89160773,3458.3,3458.1,0.006]
[1762590769005,2.89167775,3458.2,3458.1,0.006]
[1762590769705,2.00530672,3458.5,3458.1,0.4984]
[1762590769908,2.47910672,3458.5,3458.1,0.4984]
[1762590770287,2.89156477,3458.4,3458.1,0.4984]
[1762590770704,1.261712,3458.6,3458.1,0.5056]
[1762590771008,0.002,3458.6,3458.5,0.4924]
[1762590771373,0.002,3458.6,3458.5,0.992]
[1762590774121,0.002,3458.6,3458.5,3.88342691]
[1762590778027,0.002,3459.0,3458.9,2.89109254]
[1762590778228,0.002,3459.0,3458.9,3.38349254]
[1762590778530,0.002,3459.0,3458.9,3.88309254]
[1762590781112,0.002,3459.0,3458.9,0.4924]
[1762590781618,0.002,3459.0,3458.9,3.38349254]
[1762590782733,0.002,3459.0,3458.9,0.9484]
[1762590782953,0.002,3459.0,3458.9,3.83949254]
[1762590783449,0.002,3459.0,3458.9,4.51256044]
[1762590785320,0.002,3459.0,3458.9,4.65656044]
[1762590792746,0.002,3459.0,3458.9,5.09097536]
[1762590793234,0.002,3459.0,3458.9,5.06206444]
[1762590793570,0.002,3459.0,3458.9,9.68892325]
[1762590794331,0.002,3459.0,3458.9,4.65656044]
[1762590796463,0.002,3459.0,3458.9,5.06206444]
[1762590797357,0.002,3459.0,3458.9,4.65656044]
[1762590800387,0.002,3459.0,3458.9,9.17623253]
[1762590805290,0.002,3459.0,3458.9,4.20056044]
[1762590806005,0.002,3459.0,3458.9,4.65656044]
[1762590806186,0.002,3459.0,3458.9,5.43426241]
[1762590806582,1e-08,3459.1,3459.0,5.48642496]
[1762590806770,1e-08,3459.1,3459.0,11.91722613]
[1762590809506,0.4518,3461.0,3460.8,2.88950531]
[1762590809827,0.996,3460.9,3460.8,2.88950531]
[1762590811530,0.5453,3460.9,3460.8,2.88950531]
[1762590812046,0.996,3460.9,3460.8,2.88950531]
[1762590812710,0.996,3460.9,3460.7,2.8895563]
[1762590813036,0.7973,3460.8,3460.7,2.8895563]
[1762590813913,0.7973,3460.8,3459.9,4.51967209]
[1762590814111,0.1999,3460.9,3460.6,2.88967231]
[1762590814112,0.4543,3460.7,3460.6,2.88967231]
[1762590814532,0.4543,3460.7,3459.7,0.465]
[1762590814533,0.7973,3460.7,3459.3,5.55192362]
[1762590814707,0.3396,3459.7,3459.6,2.89050757]
[1762590815111,0.7939,3459.7,3459.6,2.89050757]
[1762590815933,0.3396,3459.7,3459.6,2.89050757]
[1762590816107,0.7939,3459.7,3459.6,2.89050757]
[1762590816531,0.3396,3459.7,3459.6,2.89050757]
[1762590817643,0.4543,3460.2,3459.9,2.8902021]
[1762590817811,0.4543,3460.4,3459.8,2.89031915]
[1762590818012,1.72008996,3460.3,3459.7,2.89039158]
[1762590818343,4.61001769,3460.3,3459.7,2.89039158]
[1762590818511,0.5362,3459.8,3459.7,2.89039158]
[1762590819234,0.9894,3459.8,3459.1,2.89087566]
[1762590819428,0.0045,3459.6,3459.5,2.89059112]
[1762590819634,0.144,3459.8,3459.6,2.89050757]
[1762590820405,0.144,3459.8,3459.7,2.89042402]
[1762590820607,0.5983,3459.8,3459.7,2.89042402]
[1762590820845,0.9495,3459.8,3459.7,2.89042402]
[1762590821222,0.9495,3459.8,3459.2,0.144]
[1762590821429,0.4699,3459.3,3459.2,2.89084181]
[1762590821834,0.8056,3459.3,3459.2,2.89084181]
[1762590823344,0.8056,3459.3,3459.1,2.89092081]
[1762590823546,0.8055,3459.2,3459.1,2.89092081]
[1762590823748,0.8055,3459.2,3458.9,2.89109254]
[1762590823948,0.0035,3459.0,3458.6,0.145]
[1762590824149,0.3963,3458.7,3458.6,2.89234331]
[1762590824614,0.8565,3458.7,3458.6,2.89234331]
[1762590825448,0.8565,3458.7,3458.6,0.001]
[1762590825659,1.0005,3458.7,3458.6,0.001]
[1762590826765,1.2265212,3458.7,3458.6,0.001]
[1762590827449,1.0005,3458.7,3458.6,2.89234331]
[1762590827616,0.3475,3458.7,3458.6,2.89234331]
[1762590827816,0.1928,3458.9,3458.8,2.89117613]
[1762590827817,0.144,3458.9,3458.8,2.89117613]
[1762590829155,0.144,3458.9,3458.8,3.36127613]
[1762590829453,0.144,3459.1,3459.0,2.89100896]
[1762590829835,0.002,3459.8,3459.7,2.89042402]
[1762590830220,0.3531,3459.8,3459.7,2.89042402]
[1762590833158,0.3531,3459.8,3459.7,3.36052402]
[1762590833159,0.002,3459.8,3459.7,3.36052402]
[1762590833961,0.002,3459.8,3459.7,3.81312402]
[1762590834168,0.002,3459.8,3459.7,3.36052402]
[1762590834663,0.002,3459.8,3459.7,4.49788722]
[1762590834866,0.002,3459.8,3459.7,4.04528722]
[1762590835072,0.002,3459.8,3459.7,4.49788722]
[1762590836290,0.002,3459.8,3459.7,4.52679146]
[1762590836435,0.002,3459.8,3459.7,4.64188722]
[1762590838831,0.002,3459.8,3459.7,5.90159922]
[1762590840561,0.002,3459.8,3459.7,6.33600746]
[1762590840867,0.002,3459.8,3459.7,6.30710322]
[1762590843372,0.002,3459.8,3459.7,7.08129187]
[1762590843672,0.002,3459.8,3459.7,6.30710322]
[1762590843853,0.002,3459.8,3459.7,6.42287025]
[1762590844964,0.002,3459.8,3459.7,7.19519941]
[1762590845345,0.002,3459.8,3459.7,6.30710322]
[1762590845545,0.002,3459.8,3459.7,7.07943238]
[1762590846272,0.005,3460.9,3460.8,2.88950531]
[1762590846445,0.005,3460.9,3460.8,3.55480036]
[1762590846640,0.005,3460.9,3460.8,4.68004018]
[1762590847458,0.005,3460.9,3460.8,4.65114513]
[1762590847991,0.005,3460.9,3460.8,4.68004018]
[1762590848284,0.005,3460.9,3460.8,5.05664913]
[1762590848285,1e-08,3460.9,3460.8,5.05664913]
[1762590849382,1e-08,3460.9,3460.8,6.20125618]
[1762590849594,1e-08,3460.9,3460.8,6.17236113]
[1762590851897,1e-08,3460.9,3460.8,4.02634513]
[1762590852391,1e-08,3460.9,3460.8,4.50714513]
[1762590853466,1e-08,3460.9,3460.8,4.02634513]
[1762590853772,0.92170001,3460.9,3460.8,2.88950531]
[1762590853972,0.92170001,3460.9,3460.0,2.89016759]
[1762590854188,0.0049,3460.7,3459.8,3.37113526]
[1762590854492,0.0049,3460.7,3460.6,2.88967231]
[1762590855050,0.4983,3460.7,3460.6,2.88967231]
[1762590856597,1e-08,3460.9,3460.8,2.88950531]
[1762590856889,0.92410001,3460.9,3460.7,2.88956864]
[1762590857391,0.4959,3460.8,3460.6,2.88966407]
[1762590857597,0.4959,3460.8,3460.3,2.88990142]
[1762590857598,0.2448,3460.6,3460.5,2.8897339]
[1762590857801,0.4934,3460.8,3460.6,2.88967223]
[1762590858297,0.2473,3460.7,3460.6,2.88967223]
[1762590858911,0.7383,3460.7,3459.7,0.6847632]
[1762590859210,0.0049,3460.5,3460.4,2.88976941]
[1762590859671,0.4983,3460.5,3460.4,2.88976941]
[1762590860772,0.32740001,3460.9,3460.4,2.88976941]
[1762590860773,0.82080001,3460.9,3460.4,2.88976941]
[1762590861098,0.82080001,3460.9,3460.6,2.88961053]
[1762590861277,0.82080001,3460.9,3460.3,0.144]
[1762590861478,0.82080001,3460.9,3460.7,2.88952826]
[1762590861649,0.82080001,3460.9,3460.3,0.144]
[1762590861987,0.2473,3460.6,3460.5,2.88975581]
[1762590862653,0.81840001,3460.9,3460.8,2.88950531]
[1762590862977,0.32740001,3460.9,3460.8,2.88950531]
[1762590863292,0.79140001,3460.9,3460.8,2.88950531]
[1762590863455,0.79140001,3460.9,3460.7,2.88955809]
[1762590863649,0.60580001,3460.9,3460.5,2.88974411]
[1762590863855,0.4934,3460.8,3460.3,0.144]
[1762590864256,0.2473,3460.4,3460.3,3.03392283]
[1762590867054,0.32940001,3460.9,3460.7,2.88953931]
[1762590867267,0.4934,3460.8,3460.7,2.88953931]
[1762590867581,0.7407,3460.8,3460.7,2.88953931]
[1762590870292,0.7407,3460.8,3460.3,0.144]
[1762590870293,0.7407,3460.8,3460.6,2.8896708]
[1762590870510,0.0025,3460.6,3460.5,2.88972316]
[1762590874418,0.0025,3460.6,3460.3,3.03388694]
[1762590874580,0.2745,3460.4,3460.1,0.001]
[1762590874922,0.0052,3460.2,3460.1,0.001]
[1762590875121,0.1492,3460.2,3460.1,0.001]
[1762590875342,3.50260635,3460.2,3460.1,0.001]
[1762590875523,4.76231835,3460.2,3460.1,0.001]
[1762590875828,1.872312,3460.2,3460.1,0.001]
[1762590876116,4.94954955,3460.2,3460.1,0.001]
[1762590879219,2.0595432,3460.2,3460.1,0.001]
[1762590879528,0.1492,3460.2,3460.1,0.001]
[1762590879818,0.0052,3460.2,3460.1,2.89108988]
[1762590880814,0.0052,3460.2,3460.1,0.001]
[1762590881318,0.0052,3460.2,3460.1,2.89108988]
[1762590881705,0.0052,3460.2,3460.1,0.001]
[1762590882308,0.4637,3460.2,3460.1,0.001]
[1762590882914,0.0052,3460.2,3460.1,0.001]
[1762590884013,0.4637,3460.2,3460.1,0.001]
[1762590885639,0.144,3460.4,3460.1,3.37147836]
[1762590885809,0.144,3460.4,3460.3,2.88992283]
[1762590886198,0.4258,3460.4,3460.3,2.88992283]
[1762590886890,0.18540001,3460.9,3460.4,2.88977444]
[1762590887120,0.144,3460.6,3460.5,2.88975581]
[1762590887329,0.144,3460.6,3460.5,0.4515]
[1762590887923,0.144,3460.6,3460.4,2.91871123]
[1762590887924,0.8825,3460.6,3460.1,0.001]
[1762590888112,0.279,3460.2,3460.1,2.89108318]
[1762590888311,0.18540001,3460.9,3460.1,1.07703313]
[1762590888549,0.18540001,3460.9,3460.6,2.88960711]